fUST/lending_fUST_20240716
["ID","MTS","AMOUNT","RATE_DAILY","PERIOD"]
[332341374,1721123438019,-152.0,0.00020756,2]
[332341375,1721123438029,-304.939432,0.00021096,2]
[332341376,1721123438040,-151.0,0.00021096,2]
[332341377,1721123438051,-153.0,0.0002137,2]
[332341378,1721123438062,-153.0,0.0002137,2]
[332341379,1721123438071,-153.0,0.0002137,2]
[332341380,1721123438081,-153.0,0.00021534,2]
[332341381,1721123438090,-1106.99395421,0.00021852,2]
[332341382,1721123438099,-7021.76715394,0.00021889,3]
[332341383,1721123438109,-3000.0,0.000219,2]
[332341385,1721123438121,-150.0,0.000219,2]
[332341387,1721123438131,-210.0,0.000219,2]
[332341390,1721123438143,-225.0,0.000219,2]
[332341391,1721123438152,-264.566,0.00021905,2]
[332341393,1721123438161,-504.0,0.00021905,2]
[332341395,1721123438170,-1407.0,0.00021905,2]
[332341397,1721123438179,-235.789,0.00021905,2]
[332341399,1721123438190,-151.0,0.00021905,2]
[332341401,1721123438200,-151.0,0.00021905,2]
[332341404,1721123438209,-151.0,0.00021905,2]
[332341406,1721123438220,-151.0,0.00021905,2]
[332341408,1721123438230,-151.0,0.00021905,2]
[332341410,1721123438240,-151.0,0.00021905,2]
[332341412,1721123438249,-151.0,0.00021905,2]
[332341414,1721123438259,-151.0,0.00021905,2]
[332341416,1721123438270,-166.03285918,0.00021906,2]
[332341418,1721123438281,-576.22158999,0.00021906,2]
[332341420,1721123438291,-500.0,0.00021906,2]
[332341422,1721123438302,-500.0,0.00021906,2]
[332341425,1721123438313,-371.37949788,0.00021906,2]
[332341427,1721123438324,-500.0,0.00021906,2]
[332341429,1721123438334,-500.0,0.00021906,2]
[332341431,1721123438343,-159.96564851,0.00021906,2]
[332341433,1721123438352,-70217.6715394,0.00021907,3]
[332341435,1721123438363,-225.98775772,0.00021907,2]
[332341437,1721123438374,-1743.82056229,0.00021907,2]
[332341439,1721123438382,-10539.94114025,0.00021907,2]
[332341642,1721123440101,-71.68866247,0.00021907,2]
[332341644,1721123440112,-750.24459403,0.00021907,2]
[332341646,1721123440123,-214.93367003,0.00021907,2]
[332341648,1721123440133,-151.0,0.00021907,2]
[332341650,1721123440142,-151.0,0.00021907,2]
[332341652,1721123440152,-151.0,0.00021907,2]
[332341654,1721123440162,-151.0,0.00021907,2]
[332341656,1721123440171,-221.134472,0.00021907,2]
[332341658,1721123440181,-151.0,0.00021907,2]
[332341660,1721123440191,-151.0,0.00021907,2]
[332341662,1721123440200,-151.0,0.00021907,2]
[332341664,1721123440210,-151.0,0.00021907,2]
[332341666,1721123440219,-151.0,0.00021907,2]
[332341668,1721123440229,-151.0,0.00021907,2]
[332341670,1721123440239,-151.0,0.00021907,2]
[332341672,1721123440248,-151.0,0.00021907,2]
[332341675,1721123440257,-346.270092,0.00021907,2]
[332341678,1721123440267,-151.0,0.00021907,2]
[332341681,1721123440276,-346.270092,0.00021907,2]
[332341683,1721123440286,-151.0,0.00021907,2]
[332341685,1721123440295,-151.0,0.00021907,2]
[332341687,1721123440305,-151.0,0.00021907,2]
[332341689,1721123440315,-151.0,0.00021907,2]
[332341691,1721123440324,-7021.76715394,0.00021908,3]
[332341693,1721123440333,-3000.0,0.0002191,2]
[332341695,1721123440343,-6916.88802173,0.00021917,5]
[332341697,1721123440353,-1066.9082796,0.00021917,2]
[332341699,1721123440363,-500.0,0.00021917,2]
[332341701,1721123440373,-1526.57,0.00021917,2]
[332341703,1721123440383,-500.0,0.00021917,2]
[332341705,1721123440392,-500.0,0.00021917,2]
[332341707,1721123440402,-500.0,0.00021917,2]
[332341709,1721123440411,-513.09583869,0.00021917,2]
[332341711,1721123440422,-500.0,0.00021917,2]
[332341713,1721123440431,-500.0,0.00021917,2]
[332341715,1721123440441,-500.0,0.00021917,2]
[332341717,1721123440450,-354.74832026,0.00021917,2]
[332341719,1721123440460,-500.0,0.00021917,2]
[332341721,1721123440470,-500.0,0.00021917,2]
[332341723,1721123440479,-500.0,0.00021917,2]
[332341725,1721123440489,-500.0,0.00021917,2]
[332341727,1721123440499,-500.0,0.00021917,2]
[332341729,1721123440508,-500.0,0.00021917,2]
[332341731,1721123440518,-506.36847549,0.00021917,2]
[332341734,1721123440528,-500.0,0.00021917,2]
[332341736,1721123440537,-500.0,0.00021917,2]
[332341738,1721123440547,-500.0,0.00021917,2]
[332341740,1721123440557,-500.0,0.00021917,2]
[332341742,1721123440567,-500.0,0.00021917,2]
[332341744,1721123440576,-454.20814708,0.00021917,2]
[332341746,1721123440585,-190.81208504,0.00021917,2]
[332341748,1721123440595,-500.0,0.00021917,2]
[332341750,1721123440605,-500.0,0.00021917,2]
[332341752,1721123440615,-500.0,0.00021917,2]
[332341754,1721123440625,-500.0,0.00021917,2]
[332341756,1721123440635,-504.20709115,0.00021917,2]
[332341758,1721123440644,-154.51328316,0.00021917,2]
[332341760,1721123440655,-495.87183754,0.00021917,2]
[332341762,1721123440666,-500.0,0.00021917,2]
[332341764,1721123440675,-500.0,0.00021917,2]
[332341766,1721123440685,-503.61206608,0.00021917,2]
[332341768,1721123440695,-500.0,0.00021917,2]
[332341770,1721123440704,-511.06386867,0.00021917,2]
[332341772,1721123440714,-411.95253025,0.00021917,2]
[332341774,1721123440724,-500.0,0.00021917,2]
[332341776,1721123440733,-500.0,0.00021917,2]
[332341778,1721123440742,-500.0,0.00021917,2]
[332341780,1721123440751,-500.0,0.00021917,2]
[332341782,1721123440761,-501.91227958,0.00021917,2]
[332341784,1721123440771,-500.0,0.00021917,2]
[332341786,1721123440780,-505.11920375,0.00021917,2]
[332341788,1721123440790,-151.0,0.00021917,2]
[332341790,1721123440800,-500.0,0.00021917,2]
[332341792,1721123440809,-509.27874572,0.00021917,2]
[332341794,1721123440819,-500.0,0.00021917,2]
[332341796,1721123440832,-502.0550951,0.00021917,2]
[332341798,1721123440842,-507.84554568,0.00021917,2]
[332341800,1721123440852,-500.0,0.00021917,2]
[332341802,1721123440861,-500.0,0.00021917,2]
[332341804,1721123440873,-500.0,0.00021917,2]
[332341806,1721123440885,-500.0,0.00021917,2]
[332341808,1721123440895,-500.0,0.00021917,2]
[332341810,1721123440910,-151.0,0.00021917,2]
[332341812,1721123440919,-500.0,0.00021917,2]
[332341814,1721123440931,-500.0,0.00021917,2]
[332341816,1721123440941,-500.0,0.00021917,2]
[332341818,1721123440951,-500.0,0.00021917,2]
[332341821,1721123440960,-500.0,0.00021917,2]
[332341823,1721123440971,-509.44163607,0.00021917,2]
[332341825,1721123440982,-500.0,0.00021917,2]
[332341827,1721123440991,-500.0,0.00021917,2]
[332341829,1721123441001,-500.0,0.00021917,2]
[332341831,1721123441010,-500.0,0.00021917,2]
[332341833,1721123441020,-500.0,0.00021917,2]
[332341835,1721123441030,-500.0,0.00021917,2]
[332341837,1721123441040,-508.46435199,0.00021917,2]
[332341839,1721123441049,-500.0,0.00021917,2]
[332341841,1721123441059,-500.0,0.00021917,2]
[332341843,1721123441068,-500.0,0.00021917,2]
[332341845,1721123441077,-453.07692412,0.00021917,2]
[332341847,1721123441086,-500.0,0.00021917,2]
[332341849,1721123441096,-500.0,0.00021917,2]
[332341851,1721123441106,-507.92174267,0.00021917,2]
[332341853,1721123441118,-500.0,0.00021917,2]
[332341855,1721123441127,-500.0,0.00021917,2]
[332341857,1721123441135,-500.0,0.00021917,2]
[332341859,1721123441144,-500.0,0.00021917,2]
[332341861,1721123441154,-500.0,0.00021917,2]
[332341863,1721123441163,-501.58914053,0.00021917,2]
[332341865,1721123441174,-505.75620937,0.00021917,2]
[332341867,1721123441183,-500.0,0.00021917,2]
[332341869,1721123441193,-500.0,0.00021917,2]
[332341871,1721123441203,-500.0,0.00021917,2]
[332341873,1721123441212,-500.0,0.00021917,2]
[332341875,1721123441222,-500.0,0.00021917,2]
[332341877,1721123441231,-500.0,0.00021917,2]
[332341879,1721123441241,-502.34002081,0.00021917,2]
[332341881,1721123441251,-500.0,0.00021917,2]
[332341883,1721123441261,-500.2677045,0.00021917,2]
[332341885,1721123441271,-500.0,0.00021917,2]
[332341887,1721123441280,-500.0,0.00021917,2]
[332341889,1721123441290,-500.0,0.00021917,2]
[332341891,1721123441299,-500.0,0.00021917,2]
[332341893,1721123441309,-500.0,0.00021917,2]
[332341895,1721123441318,-500.0,0.00021917,2]
[332341897,1721123441327,-500.0,0.00021917,2]
[332341899,1721123441337,-518.77490921,0.00021917,2]
[332341901,1721123441347,-500.0,0.00021917,2]
[332341903,1721123441357,-501.5508022,0.00021917,2]
[332341905,1721123441369,-500.0,0.00021917,2]
[332341907,1721123441378,-500.0,0.00021917,2]
[332341909,1721123441388,-470.8655459,0.00021917,2]
[332341911,1721123441398,-500.0,0.00021917,2]
[332341913,1721123441407,-339.91201445,0.00021917,2]
[332341915,1721123441417,-500.0,0.00021917,2]
[332341917,1721123441427,-500.0,0.00021917,2]
[332341919,1721123441437,-500.0,0.00021917,2]
[332341921,1721123441447,-508.45927377,0.00021917,2]
[332341923,1721123441456,-262.14064256,0.00021917,2]
[332341936,1721123441466,-500.0,0.00021917,4]
[332341938,1721123441579,-500.0,0.00021917,2]
[332341940,1721123441591,-500.0,0.00021917,2]
[332341942,1721123441601,-500.60835718,0.00021917,2]
[332341944,1721123441610,-500.0,0.00021917,2]
[332341946,1721123441623,-151.0,0.00021917,2]
[332341948,1721123441632,-151.0,0.00021917,2]
[332341950,1721123441643,-151.0,0.00021917,2]
[332341952,1721123441656,-151.0,0.00021917,2]
[332341953,1721123441665,-151.0,0.00021917,2]
[332341954,1721123441674,-158.731412,0.00021917,2]
[332341955,1721123441684,-503.80074372,0.00021917,2]
[332341956,1721123441693,-500.0,0.00021917,2]
[332341957,1721123441701,-500.0,0.00021917,2]
[332341958,1721123441711,-500.0,0.00021917,2]
[332341959,1721123441721,-500.0,0.00021917,2]
[332341960,1721123441731,-516.91087296,0.00021917,2]
[332341961,1721123441742,-500.0,0.00021917,2]
[332341962,1721123441752,-500.0,0.00021917,2]
[332341963,1721123441764,-500.0,0.00021917,2]
[332341964,1721123441775,-500.0,0.00021917,2]
[332341965,1721123441786,-500.0,0.00021917,2]
[332341966,1721123441796,-500.0,0.00021917,2]
[332341967,1721123441806,-500.0,0.00021917,2]
[332341968,1721123441816,-500.0,0.00021917,2]
[332341969,1721123441829,-500.0,0.00021917,2]
[332341971,1721123441840,-181.52347771,0.00021917,2]
[332341973,1721123441850,-500.0,0.00021917,2]
[332341975,1721123441861,-500.0,0.00021917,2]
[332341977,1721123441873,-500.0,0.00021917,2]
[332341979,1721123441884,-500.0,0.00021917,2]
[332341981,1721123441894,-500.0,0.00021917,2]
[332341983,1721123441905,-500.0,0.00021917,2]
[332341985,1721123441915,-500.0,0.00021917,2]
[332341987,1721123441925,-500.0,0.00021917,2]
[332341989,1721123441935,-501.33424442,0.00021917,2]
[332341991,1721123441947,-500.0,0.00021917,2]
[332341993,1721123441958,-581.0521385,0.00021917,2]
[332341995,1721123441969,-500.0,0.00021917,2]
[332341998,1721123441981,-500.0,0.00021917,2]
[332342000,1721123441991,-500.0,0.00021917,2]
[332342002,1721123442001,-500.0,0.00021917,2]
[332342004,1721123442012,-500.0,0.00021917,2]
[332342006,1721123442023,-500.0,0.00021917,2]
[332342008,1721123442033,-512.44665736,0.00021917,2]
[332342010,1721123442042,-500.0,0.00021917,2]
[332342012,1721123442052,-500.0,0.00021917,2]
[332342014,1721123442061,-500.0,0.00021917,2]
[332342016,1721123442071,-500.0,0.00021917,2]
[332342018,1721123442080,-262.14173142,0.00021917,2]
[332342020,1721123442090,-500.0,0.00021917,2]
[332342022,1721123442100,-500.0,0.00021917,2]
[332342024,1721123442110,-550.0740932,0.00021917,2]
[332342026,1721123442120,-505.725413,0.00021917,2]
[332342028,1721123442131,-500.0,0.00021917,2]
[332342030,1721123442142,-505.61306101,0.00021917,2]
[332342032,1721123442154,-500.0,0.00021917,2]
[332342034,1721123442164,-29.82523485,0.00021917,2]
[332342144,1721123443049,-443.31980428,0.00019807,2]
[332342146,1721123443059,-151.0,0.00021907,2]
[332342148,1721123443068,-470.17476515,0.00021917,2]
[332342150,1721123443077,-500.0,0.00021917,2]
[332342152,1721123443087,-508.67133842,0.00021917,2]
[332342154,1721123443097,-500.0,0.00021917,2]
[332342156,1721123443106,-500.0,0.00021917,2]
[332342158,1721123443117,-500.0,0.00021917,2]
[332342160,1721123443127,-500.0,0.00021917,2]
[332342162,1721123443136,-500.0,0.00021917,2]
[332342164,1721123443145,-500.0,0.00021917,2]
[332342166,1721123443155,-500.0,0.00021917,2]
[332342168,1721123443164,-151.0,0.00021917,2]
[332342170,1721123443173,-151.0,0.00021917,2]
[332342172,1721123443182,-500.0,0.00021917,2]
[332342174,1721123443191,-151.0,0.00021917,2]
[332342176,1721123443201,-151.0,0.00021917,2]
[332342178,1721123443211,-151.0,0.00021917,2]
[332342180,1721123443220,-151.0,0.00021917,2]
[332342182,1721123443229,-151.0,0.00021917,2]
[332342184,1721123443239,-151.0,0.00021917,2]
[332342187,1721123443248,-149.15654629,0.00021917,2]
[332342190,1721123443260,-23.25762871,0.00021917,2]
[332342193,1721123443270,-500.0,0.00021917,2]
[332342196,1721123443279,-500.0,0.00021917,2]
[332342199,1721123443288,-504.64093857,0.00021917,2]
[332342202,1721123443299,-500.0,0.00021917,2]
[332342205,1721123443308,-502.90989563,0.00021917,2]
[332342208,1721123443318,-500.0,0.00021917,2]
[332342211,1721123443327,-108.88194314,0.00021917,2]
[332342213,1721123443339,-391.11805686,0.00021917,2]
[332342215,1721123443349,-502.29274821,0.00021917,2]
[332342217,1721123443360,-504.64630016,0.00021917,2]
[332342220,1721123443372,-500.0,0.00021917,2]
[332342222,1721123443383,-500.0,0.00021917,2]
[332342224,1721123443392,-500.0,0.00021917,2]
[332342226,1721123443402,-502.80978159,0.00021917,2]
[332342228,1721123443411,-502.86730287,0.00021917,2]
[332342230,1721123443420,-500.0,0.00021917,2]
[332342232,1721123443436,-500.0,0.00021917,2]
[332342234,1721123443457,-513.15843508,0.00021917,2]
[332342236,1721123443481,-500.0,0.00021917,2]
[332342237,1721123443496,-503.87887763,0.00021917,2]
[332342239,1721123443517,-500.0,0.00021917,2]
[332342241,1721123443539,-500.0,0.00021917,2]
[332342243,1721123443561,-500.0,0.00021917,2]
[332342245,1721123443583,-508.81352924,0.00021917,2]
[332342247,1721123443606,-500.0,0.00021917,2]
[332342249,1721123443629,-502.78403637,0.00021917,2]
[332342251,1721123443649,-599.01,0.00021917,2]
[332342253,1721123443662,-500.0,0.00021917,2]
[332342255,1721123443672,-500.0,0.00021917,2]
[332342257,1721123443681,-503.11395463,0.00021917,2]
[332342259,1721123443692,-500.0,0.00021917,2]
[332342261,1721123443701,-506.11815246,0.00021917,2]
[332342263,1721123443711,-500.0,0.00021917,2]
[332342266,1721123443723,-500.0,0.00021917,2]
[332342268,1721123443733,-502.73728453,0.00021917,2]
[332342270,1721123443744,-500.0,0.00021917,2]
[332342272,1721123443756,-500.0,0.00021917,2]
[332342274,1721123443766,-151.0,0.00021917,2]
[332342276,1721123443775,-151.0,0.00021917,2]
[332342278,1721123443785,-151.733331,0.00021917,2]
[332342280,1721123443795,-500.0,0.00021917,2]
[332342282,1721123443805,-502.84333548,0.00021917,2]
[332342285,1721123443815,-500.0,0.00021917,2]
[332342287,1721123443824,-500.0,0.00021917,2]
[332342288,1721123443837,-500.0,0.00021917,2]
[332342290,1721123443847,-151.0,0.00021917,2]
[332342292,1721123443856,-206.973916,0.00021917,2]
[332342295,1721123443867,-500.0,0.00021917,2]
[332342297,1721123443878,-500.0,0.00021917,2]
[332342299,1721123443887,-500.0,0.00021917,2]
[332342300,1721123443897,-500.0,0.00021917,2]
[332342303,1721123443906,-559.78831013,0.00021917,2]
[332342305,1721123443916,-500.0,0.00021917,2]
[332342307,1721123443925,-500.0,0.00021917,2]
[332342309,1721123443936,-500.0,0.00021917,2]
[332342311,1721123443945,-500.0,0.00021917,2]
[332342313,1721123443954,-500.0,0.00021917,2]
[332342315,1721123443964,-500.0,0.00021917,2]
[332342317,1721123443973,-503.02618595,0.00021917,2]
[332342319,1721123443982,-500.0,0.00021917,2]
[332342321,1721123443991,-500.0,0.00021917,2]
[332342323,1721123444001,-500.0,0.00021917,2]
[332342325,1721123444011,-500.0,0.00021917,2]
[332342327,1721123444020,-500.0,0.00021917,2]
[332342329,1721123444029,-500.0,0.00021917,2]
[332342330,1721123444038,-500.0,0.00021917,2]
[332342333,1721123444051,-299.7696041,0.00021917,2]
[332342335,1721123444061,-505.92187052,0.00021917,2]
[332342337,1721123444070,-500.0,0.00021917,2]
[332342339,1721123444079,-2431.03,0.00021917,2]
[332342340,1721123444088,-500.0,0.00021917,2]
[332342342,1721123444097,-500.0,0.00021917,2]
[332342344,1721123444106,-500.0,0.00021917,2]
[332342346,1721123444117,-500.0,0.00021917,2]
[332342348,1721123444126,-500.0,0.00021917,2]
[332342350,1721123444135,-300.0,0.00021917,2]
[332342352,1721123444144,-500.0,0.00021917,2]
[332342354,1721123444154,-500.0,0.00021917,2]
[332342356,1721123444163,-500.0,0.00021917,2]
[332342358,1721123444172,-500.0,0.00021917,2]
[332342360,1721123444181,-500.0,0.00021917,2]
[332342362,1721123444190,-500.0,0.00021917,2]
[332342364,1721123444199,-500.0,0.00021917,2]
[332342366,1721123444208,-505.14193436,0.00021917,2]
[332342368,1721123444218,-500.0,0.00021917,2]
[332342370,1721123444227,-500.0,0.00021917,2]
[332342372,1721123444237,-500.0,0.00021917,2]
[332342374,1721123444246,-500.0,0.00021917,2]
[332342376,1721123444255,-500.0,0.00021917,2]
[332342378,1721123444264,-500.0,0.00021917,2]
[332342380,1721123444273,-504.44745068,0.00021917,2]
[332342382,1721123444282,-500.0,0.00021917,2]
[332342384,1721123444292,-504.09600303,0.00021917,2]
[332342386,1721123444302,-508.7410246,0.00021917,2]
[332342388,1721123444311,-500.0,0.00021917,2]
[332342395,1721123444413,-500.0,0.00021917,2]
[332342396,1721123444422,-500.0,0.00021917,2]
[332342398,1721123444432,-151.0,0.00021917,2]
[332342400,1721123444441,-151.0,0.00021917,2]
[332342402,1721123444450,-151.0,0.00021917,2]
[332342404,1721123444460,-151.0,0.00021917,2]
[332342406,1721123444469,-151.0,0.00021917,2]
[332342408,1721123444478,-500.0,0.00021917,2]
[332342410,1721123444487,-500.0,0.00021917,2]
[332342412,1721123444498,-151.0,0.00021917,2]
[332342414,1721123444508,-500.0,0.00021917,2]
[332342416,1721123444518,-240.102346,0.00021917,2]
[332342418,1721123444530,-500.0,0.00021917,2]
[332342420,1721123444539,-670.63,0.00021917,2]
[332342422,1721123444550,-500.0,0.00021917,2]
[332342424,1721123444561,-500.0,0.00021917,2]
[332342426,1721123444571,-500.0,0.00021917,2]
[332342428,1721123444582,-500.0,0.00021917,2]
[332342430,1721123444591,-500.0,0.00021917,2]
[332342432,1721123444601,-500.0,0.00021917,2]
[332342434,1721123444611,-500.0,0.00021917,2]
[332342436,1721123444624,-500.0,0.00021917,2]
[332342439,1721123444636,-500.0,0.00021917,2]
[332342441,1721123444648,-500.0,0.00021917,2]
[332342443,1721123444657,-540.91527961,0.00021917,2]
[332342445,1721123444665,-500.0,0.00021917,2]
[332342447,1721123444675,-500.0,0.00021917,2]
[332342449,1721123444684,-504.55422732,0.00021917,2]
[332342451,1721123444693,-500.0,0.00021917,2]
[332342453,1721123444702,-500.0,0.00021917,2]
[332342454,1721123444711,-500.0,0.00021917,2]
[332342456,1721123444722,-500.0,0.00021917,2]
[332342458,1721123444733,-500.0,0.00021917,2]
[332342460,1721123444742,-636.71901725,0.00021917,2]
[332342462,1721123444752,-500.0,0.00021917,2]
[332342465,1721123444762,-500.0,0.00021917,2]
[332342467,1721123444771,-500.0,0.00021917,2]
[332342469,1721123444782,-500.0,0.00021917,2]
[332342471,1721123444793,-505.21389866,0.00021917,2]
[332342473,1721123444805,-500.0,0.00021917,2]
[332342475,1721123444817,-500.0,0.00021917,2]
[332342477,1721123444828,-500.0,0.00021917,2]
[332342479,1721123444840,-500.0,0.00021917,2]
[332342482,1721123444849,-500.0,0.00021917,2]
[332342484,1721123444859,-500.0,0.00021917,2]
[332342486,1721123444870,-500.0,0.00021917,2]
[332342488,1721123444881,-500.0,0.00021917,2]
[332342490,1721123444890,-500.0,0.00021917,2]
[332342492,1721123444899,-511.18340365,0.00021917,2]
[332342494,1721123444911,-500.0,0.00021917,2]
[332342496,1721123444921,-504.4667416,0.00021917,2]
[332342498,1721123444931,-500.0,0.00021917,2]
[332342500,1721123444940,-500.0,0.00021917,2]
[332342502,1721123444949,-250.76692678,0.00021917,2]
[332342504,1721123444959,-500.0,0.00021917,2]
[332342506,1721123444968,-500.0,0.00021917,2]
[332342508,1721123444977,-500.0,0.00021917,2]
[332342510,1721123444986,-500.0,0.00021917,2]
[332342512,1721123444996,-550.84720762,0.00021917,2]
[332342514,1721123445005,-500.0,0.00021917,2]
[332342516,1721123445015,-500.0,0.00021917,2]
[332342518,1721123445026,-500.0,0.00021917,2]
[332342520,1721123445037,-151.0,0.00021917,2]
[332342522,1721123445046,-500.0,0.00021917,2]
[332342524,1721123445056,-500.0,0.00021917,2]
[332342526,1721123445065,-151.0,0.00021917,2]
[332342528,1721123445074,-502.4897851,0.00021917,2]
[332342530,1721123445084,-151.0,0.00021917,2]
[332342532,1721123445092,-500.0,0.00021917,2]
[332342534,1721123445102,-500.0,0.00021917,2]
[332342536,1721123445112,-183.377174,0.00021917,2]
[332342538,1721123445123,-500.0,0.00021917,2]
[332342540,1721123445132,-500.0,0.00021917,2]
[332342542,1721123445143,-500.0,0.00021917,2]
[332342544,1721123445152,-500.0,0.00021917,2]
[332342546,1721123445161,-500.0,0.00021917,2]
[332342548,1721123445171,-500.0,0.00021917,2]
[332342550,1721123445180,-500.0,0.00021917,2]
[332342552,1721123445189,-500.0,0.00021917,2]
[332342554,1721123445198,-400.06453788,0.00021917,2]
[332342555,1721123445207,-500.0,0.00021917,2]
[332342557,1721123445216,-500.0,0.00021917,2]
[332342559,1721123445226,-500.0,0.00021917,2]
[332342561,1721123445235,-502.84126591,0.00021917,2]
[332342563,1721123445244,-500.0,0.00021917,2]
[332342565,1721123445254,-500.0,0.00021917,2]
[332342567,1721123445263,-500.0,0.00021917,2]
[332342569,1721123445273,-500.0,0.00021917,2]
[332342571,1721123445282,-500.0,0.00021917,2]
[332342573,1721123445291,-500.0,0.00021917,2]
[332342575,1721123445301,-500.0,0.00021917,2]
[332342578,1721123445310,-734.72,0.00021917,2]
[332342581,1721123445319,-500.0,0.00021917,2]
[332342584,1721123445330,-500.0,0.00021917,2]
[332342587,1721123445339,-500.0,0.00021917,2]
[332342590,1721123445348,-500.0,0.00021917,2]
[332342593,1721123445358,-500.0,0.00021917,2]
[332342596,1721123445368,-480.15340634,0.00021917,2]
[332342599,1721123445378,-500.0,0.00021917,2]
[332342602,1721123445387,-500.0,0.00021917,2]
[332342605,1721123445398,-500.0,0.00021917,2]
[332342608,1721123445408,-500.0,0.00021917,2]
[332342611,1721123445418,-500.0,0.00021917,2]
[332342614,1721123445427,-546.94129352,0.00021917,2]
[332342617,1721123445437,-344.90223357,0.00021917,2]
[332342673,1721123445950,-211.918,0.00021905,2]
[332342675,1721123445960,-156.35852976,0.00021917,2]
[332342677,1721123445969,-553.67422185,0.00021917,2]
[332342679,1721123445979,-547.44820062,0.00021917,2]
[332342680,1721123445988,-228.10104777,0.00021917,2]
[332344000,1721123571991,184.06113769,0.00014999,2]
[332344001,1721123573260,713.65908181,0.00014999,2]
[332344006,1721124129314,-300.0,0.00016254,2]
[332344007,1721124129339,-300.0,0.00016254,2]
[332344008,1721124129363,-17276.36712772,0.00016255,2]
[332344009,1721124152969,4419.99677643,0.00014999,2]
[332344010,1721124232428,7523.1086555,0.00016255,2]
[332344061,1721124632197,-300.0,0.00017984,2]
[332344063,1721124632206,-300.0,0.00017984,2]
[332344065,1721124632221,-2646.66032144,0.00017985,2]
[332344111,1721124638181,-22253.33967856,0.00017985,2]
[332344113,1721124638191,-204.46279486,0.00018098,2]
[332344115,1721124638201,-500.0,0.00018895,2]
[332344117,1721124638210,-500.0,0.00018895,2]
[332344119,1721124638223,-500.0,0.00018895,2]
[332344121,1721124638232,-347.88509852,0.00018895,2]
[332344123,1721124638242,-298.30640096,0.00018895,2]
[332344125,1721124638253,-500.0,0.00018895,2]
[332344127,1721124638262,-382.39523091,0.00018895,2]
[332344129,1721124638271,-648.81152348,0.00018895,2]
[332344131,1721124638281,-314.932233,0.00018897,2]
[332344133,1721124638290,-159.61153484,0.0001905,2]
[332344135,1721124638302,-900.33336253,0.0001915,2]
[332344137,1721124638312,-345.9684907,0.00019165,2]
[332344139,1721124638326,-271.536544,0.0001925,2]
[332344141,1721124638335,-788.050396,0.00019349,2]
[332344143,1721124638344,-162.0,0.00019623,2]
[332344145,1721124638356,-300.0,0.00019783,2]
[332344147,1721124638366,-438.17981427,0.00019817,2]
[332344149,1721124638376,-764.58301536,0.0002,2]
[332344151,1721124638385,-428.86667829,0.0002,2]
[332344153,1721124638394,-159.61153484,0.00020434,2]
[332344155,1721124638403,-571.44,0.00021,2]
[332344157,1721124638412,-304.939433,0.00021096,2]
[332344159,1721124638421,-1407.0,0.00021341,2]
[332344161,1721124638431,-900.33336249,0.000214,2]
[332344163,1721124638440,-769.82482617,0.00021717,2]
[332344165,1721124638448,-769.82482614,0.00021742,2]